bitfinex/quotes_ETHUSD_20241130
["timestamp","ask_amount","ask_price","bid_price","bid_amount"]
[1732962792229,0.8312,3676.3,3676.0,2.72034]
[1732962792230,1.08286473,3676.3,3676.0,2.72034]
[1732962792435,0.8312,3676.3,3676.0,2.72034]
[1732962793494,0.8312,3676.3,3675.8,2.72049]
[1732962793698,3.55138,3676.3,3675.6,2.72063]
[1732962794135,8.93,3676.1,3674.6,2.72133]
[1732962794440,0.76,3675.5,3674.5,0.8125]
[1732962794648,0.76,3675.5,3675.0,2.72108]
[1732962794943,0.25183239,3675.4,3675.0,2.72108]
[1732962795135,0.25183239,3675.3,3675.0,2.72108]
[1732962795302,1.16293183,3675.5,3674.8,2.72121]
[1732962795498,0.25188523,3675.4,3675.1,2.72095]
[1732962795741,0.25188523,3675.3,3675.1,2.72095]
[1732962795902,0.95293183,3675.7,3675.2,2.72094]
[1732962796249,0.25189333,3675.6,3675.2,2.72094]
[1732962796409,0.25189333,3675.5,3675.2,2.72094]
[1732962796612,0.25189333,3675.4,3675.2,2.72094]
[1732962796807,0.95305146,3675.7,3675.1,2.72096]
[1732962797010,0.25190319,3675.6,3675.1,2.72096]
[1732962797213,0.25190319,3675.5,3675.1,2.72096]
[1732962797407,0.25190319,3675.4,3675.1,2.72096]
[1732962797631,0.95310478,3675.7,3675.1,2.72096]
[1732962797853,0.251939,3675.6,3675.1,2.72096]
[1732962798010,0.251939,3675.5,3675.1,2.72096]
[1732962798210,0.251939,3675.4,3675.1,2.72096]
[1732962798430,0.95310478,3675.7,3675.1,2.72096]
[1732962798629,0.25194212,3675.6,3675.0,2.72107]
[1732962798832,0.25194212,3675.5,3675.0,2.72107]
[1732962799004,0.25194212,3675.4,3675.0,2.72107]
[1732962799343,0.25194212,3675.3,3675.0,2.72107]
[1732962799642,3.27057,3675.7,3675.0,2.72107]
[1732962799839,0.25194072,3675.6,3675.0,2.72107]
[1732962800012,0.25194072,3675.5,3675.0,2.72107]
[1732962800225,0.25194072,3675.4,3675.0,2.72107]
[1732962800428,0.55,3675.7,3674.5,0.8125]
[1732962800649,0.55,3675.3,3674.1,2.72174]
[1732962800842,0.55,3675.3,3673.6,0.3469283]
[1732962800843,0.76,3674.7,3673.7,2.72203]
[1732962801051,2.07800239,3675.1,3673.6,3.0690483]
[1732962801052,0.76,3674.2,3673.6,3.0690483]
[1732962801254,0.76,3674.2,3673.7,2.72202]
[1732962801564,0.76,3674.2,3673.4,0.2826799]
[1732962801565,2.72182,3674.1,3673.4,0.2826799]
[1732962801756,0.76,3674.2,3673.4,0.2826799]
[1732962801757,0.79402179,3674.2,3673.4,0.2826799]
[1732962801916,2.72184,3674.0,3673.4,3.0049299]
[1732962802280,0.03402253,3674.1,3673.5,2.72218]
[1732962802555,3.00726805,3674.1,3673.4,0.2826799]
[1732962802728,0.55,3673.9,3673.4,0.2826799]
[1732962802940,0.03402642,3673.8,3673.3,2.72233]
[1732962803115,0.55,3673.9,3673.5,2.72214]
[1732962803735,0.55,3674.1,3673.5,2.72214]
[1732962804068,0.76,3674.2,3673.5,0.544447]
[1732962804356,0.76,3674.2,3673.7,2.72201]
[1732962804872,0.76,3674.2,3673.8,2.72196]
[1732962805019,0.76,3674.2,3673.6,2.72209]
[1732962805218,0.76,3674.2,3673.7,2.72204]
[1732962805828,0.76,3674.2,3673.8,2.72197]
[1732962806255,0.76,3674.7,3674.0,2.72182]
[1732962806457,0.55,3674.6,3674.3,2.72155]
[1732962807361,0.76,3674.7,3674.1,2.72174]
[1732962807515,0.55,3674.7,3674.6,2.72138]
[1732962807725,0.8019,3675.2,3674.6,3.265669]
[1732962807966,0.8019,3675.2,3674.7,2.7213]
[1732962808330,0.8019,3675.2,3674.6,2.72132]
[1732962808528,0.8019,3675.2,3674.1,2.7217]
[1732962808733,0.8019,3675.2,3674.2,3.0]
[1732962809054,0.55,3675.1,3674.7,2.72126]
[1732962810351,0.55,3675.1,3674.8,2.72123]
[1732962810677,9.7047,3675.7,3674.7,0.272126]
[1732962810854,9.7047,3675.7,3675.3,2.72081]
[1732962813181,0.55,3674.4,3673.5,2.72219]
[1732962813329,0.55,3674.4,3673.9,2.72189]
[1732962813537,0.55,3674.4,3673.8,2.72197]
[1732962814043,0.55,3674.4,3673.7,2.72203]
[1732962814249,0.55,3674.2,3673.7,2.72203]
[1732962814466,0.55,3674.2,3673.0,4.08245029]
[1732962814771,0.55,3674.4,3673.8,2.72192]
[1732962815288,3.27158,3674.4,3673.6,2.72206]
[1732962815492,3.27158,3674.4,3673.8,2.72196]
[1732962815981,0.03402253,3674.3,3673.8,2.72196]
[1732962816186,0.55,3674.2,3673.6,2.72208]
[1732962816414,0.55,3674.2,3673.7,2.72202]
[1732962816547,0.55,3674.3,3673.8,2.72196]
[1732962816882,0.55,3674.4,3673.8,2.72196]
[1732962817278,0.55,3674.4,3673.9,2.7219]
[1732962818045,0.55,3674.4,3673.7,2.72205]
[1732962818245,0.55,3674.0,3673.3,2.72233]
[1732962818447,0.55,3674.0,3673.1,0.40824503]
[1732962818648,0.55,3674.1,3673.1,0.40824503]
[1732962819082,0.7747,3673.9,3673.4,2.7222]
[1732962819247,0.55,3673.8,3673.2,2.72242]
[1732962819583,0.55,3673.8,3673.3,2.72234]
[1732962819958,0.55,3673.8,3673.4,2.72225]
[1732962820271,0.55,3673.8,3673.5,2.72217]
[1732962820469,0.55,3673.8,3673.6,2.72208]
[1732962821050,0.55,3673.8,3673.7,2.72205]
[1732962821450,0.55,3673.8,3673.5,2.72216]
[1732962821684,0.55,3673.8,3673.6,2.72211]
[1732962822881,0.55,3674.1,3673.6,0.544438]
[1732962823096,0.7747,3674.2,3673.2,0.42131153]
[1732962823410,0.7747,3674.2,3673.9,2.72185]
[1732962823784,0.7747,3674.2,3674.0,2.72181]
[1732962823991,0.7747,3674.2,3674.1,2.72175]
[1732962824391,1.3247,3674.2,3674.1,2.72175]
[1732962824591,0.7747,3674.2,3673.8,2.72193]
[1732962824909,0.55,3674.1,3673.8,2.72193]
[1732962825409,0.55,3674.1,3673.6,2.72207]
[1732962825590,3.30579358,3674.1,3673.2,2.72235]
[1732962825788,0.55,3674.1,3673.3,2.72234]
[1732962826454,0.55,3674.1,3673.5,2.72214]
[1732962826614,0.55,3673.7,3672.7,3.0]
[1732962826820,0.55,3673.7,3673.2,2.72236]
[1732962827225,0.55,3673.7,3673.0,2.72257]
[1732962827515,0.80135666,3673.7,3673.0,2.72257]
[1732962827720,0.80135666,3673.7,3673.1,2.72246]
[1732962828597,0.25135666,3673.7,3673.1,0.7998]
[1732962828802,0.7747,3673.8,3673.6,2.72211]
[1732962829176,0.7747,3673.8,3673.7,2.72205]
[1732962829376,1.42849809,3674.4,3673.8,2.7219]
[1732962829573,0.2514608,3674.3,3673.9,2.72187]
[1732962829777,0.55,3674.1,3673.9,2.72187]
[1732962830010,0.55,3674.2,3673.9,2.72187]
[1732962830237,0.8014608,3674.2,3673.9,2.72187]
[1732962830418,0.55,3674.2,3673.9,2.72187]
[1732962830621,0.8014608,3674.2,3673.9,2.72187]
[1732962830788,0.55,3674.2,3673.9,2.72187]
[1732962830988,0.8014608,3674.2,3674.0,2.72182]
[1732962831197,0.55,3674.2,3674.0,2.72182]
[1732962831696,0.2514608,3674.4,3674.2,2.72168]
[1732962832014,0.2514608,3674.7,3674.3,2.7216]
[1732962832221,0.25160254,3674.7,3674.4,2.72149]
[1732962832434,0.25160254,3674.6,3674.4,2.72149]
[1732962832636,0.25160254,3674.7,3674.4,2.72149]
[1732962832842,0.25160254,3674.7,3674.2,2.72168]
[1732962833168,0.25160254,3674.6,3673.9,2.72185]
[1732962833327,0.25160254,3674.5,3674.1,2.72173]
[1732962833511,0.25160254,3674.6,3674.1,2.72173]
[1732962833817,0.25160254,3674.5,3674.2,2.72165]
[1732962834016,0.25160254,3674.6,3673.6,0.7889]
[1732962834216,0.25160254,3674.5,3674.3,2.72159]
[1732962834417,0.55,3674.6,3674.3,2.72159]
[1732962834653,0.25160254,3674.5,3674.3,2.72159]
[1732962836626,0.55,3674.7,3674.4,2.72152]
[1732962836825,0.80160829,3674.7,3674.5,2.72138]
[1732962837055,0.80160829,3674.7,3674.4,2.72152]
[1732962837745,0.25160829,3674.6,3674.4,2.72152]
[1732962838845,1.3083,3674.5,3673.2,0.352243]
[1732962839060,0.55,3674.2,3673.6,2.72205]
[1732962839208,0.55,3674.2,3673.8,2.72197]
[1732962839409,0.25160685,3674.1,3673.9,2.72189]
[1732962839608,0.25166533,3674.2,3674.0,2.72182]
[1732962839846,0.55,3674.4,3673.8,2.72196]
[1732962840052,0.55,3674.2,3673.9,2.72188]
[1732962840457,0.25171141,3674.1,3673.7,2.72199]
[1732962840748,0.55,3674.2,3673.4,2.72226]
[1732962841044,0.25171027,3674.1,3674.0,2.72182]
[1732962841354,0.25183752,3674.1,3674.0,2.72182]
[1732962842144,0.7583,3674.9,3674.6,2.72138]
[1732962842355,0.17020303,3675.1,3674.8,2.72123]
[1732962842563,0.7583,3675.2,3674.8,2.72123]
[1732962842842,0.25211184,3675.1,3674.9,2.72116]
[1732962843046,0.7583,3675.2,3674.9,2.72116]
[1732962843232,0.6554984,3675.1,3674.9,2.72116]
[1732962843434,0.25211477,3675.0,3674.9,2.72116]
[1732962843657,0.40338363,3675.4,3674.9,2.72116]
[1732962843812,0.2521297,3675.3,3675.2,2.72094]
[1732962844013,8.93,3676.0,3674.9,0.544253]
[1732962844014,0.7583,3675.8,3675.5,2.72065]
[1732962844316,0.25215246,3675.7,3675.6,2.72064]
[1732962844514,0.7583,3675.8,3675.6,2.72064]
[1732962845149,0.25194865,3675.7,3675.6,2.72064]
[1732962845360,0.7583,3675.8,3675.7,2.72057]
[1732962845573,1.01005758,3675.8,3675.7,2.72057]
[1732962846074,0.25175628,3675.8,3675.7,2.72057]
[1732962846238,0.55,3676.0,3675.7,2.72057]
[1732962846425,0.25159235,3675.9,3675.7,2.72057]
[1732962846630,0.55,3676.0,3675.7,2.72057]
[1732962846862,0.55,3676.0,3675.5,2.72071]
[1732962846863,0.25160076,3675.9,3675.3,0.7889]
[1732962847078,8.93,3676.3,3676.0,2.72033]
[1732962847232,0.25159096,3676.2,3676.0,2.72033]
[1732962847427,0.25143985,3676.3,3676.0,2.72033]
[1732962847654,0.25144024,3676.3,3676.0,2.72033]
[1732962847970,0.7583,3676.4,3675.8,2.72049]
[1732962848155,0.55,3676.2,3675.8,2.72049]
[1732962848534,0.801442,3676.3,3675.8,2.72049]
[1732962849228,0.55,3676.3,3675.8,2.72049]
[1732962850071,0.55,3676.3,3675.4,0.37889]
[1732962850072,0.55,3676.3,3675.6,2.7206]
[1732962850368,0.55,3676.3,3675.0,3.0]
[1732962850369,0.7945,3676.0,3675.0,3.49268]
[1732962850576,3.51499,3675.8,3674.8,2.72116]
[1732962850867,0.55,3675.5,3674.6,2.72137]
[1732962851054,0.55,3675.3,3674.8,2.72123]
[1732962851584,0.80113082,3675.5,3674.9,2.72109]
[1732962851865,0.55,3675.5,3674.9,2.72109]
[1732962852571,2.75486155,3675.4,3674.7,2.72129]
[1732962852773,3.27093,3675.3,3674.5,2.72144]
[1732962852976,0.03401368,3675.2,3674.7,2.7213]
[1732962853271,0.55,3675.3,3674.7,2.7213]
[1732962854146,0.55,3675.5,3674.8,2.72122]
[1732962854531,0.55,3675.3,3674.8,2.72122]
[1732962855733,0.55,3675.3,3674.6,2.72137]
[1732962855970,3.27088,3675.3,3674.6,2.72137]
[1732962856169,0.0340137,3675.2,3674.4,2.72152]
[1732962856355,2.72107,3675.1,3674.4,2.72152]
[1732962856676,2.72107,3675.1,3674.5,2.72144]
[1732962856883,0.55,3675.0,3674.5,2.72144]
[1732962857189,0.55,3675.1,3674.5,2.72144]
[1732962857741,2.72121,3674.9,3674.3,2.72158]
[1732962857982,0.7945,3675.0,3674.3,0.621493]
[1732962858133,0.7945,3675.0,3674.6,2.72132]
[1732962858337,1.3445,3675.3,3674.2,3.0]
[1732962858583,1.3445,3675.3,3674.8,2.72117]
[1732962859700,1.3445,3675.3,3674.6,2.72134]
[1732962860008,1.59594726,3675.3,3674.6,2.72134]
[1732962860194,1.59594726,3675.3,3674.7,2.72128]
[1732962860704,1.59594726,3675.3,3674.9,2.72109]
[1732962860874,1.3445,3675.3,3674.8,2.72122]
[1732962861295,4.06538,3675.3,3674.6,2.72137]
[1732962861503,2.75498395,3675.2,3674.6,2.72137]
[1732962861660,4.06538,3675.3,3674.7,2.72131]
[1732962861661,1.3445,3675.3,3674.7,2.72131]
[1732962861861,4.06538,3675.3,3674.4,2.72146]
[1732962862101,0.25163569,3675.2,3674.4,0.272146]
[1732962862261,0.25163569,3675.2,3674.7,2.7213]
[1732962862665,1.3445,3675.3,3674.7,2.7213]
[1732962863403,0.25169582,3675.2,3674.7,2.7213]
[1732962863570,1.3445,3675.3,3674.7,2.7213]
[1732962863770,0.2516958,3675.2,3674.7,2.7213]
[1732962864034,0.2516958,3675.2,3674.8,2.72123]
[1732962864224,0.2516958,3675.3,3675.1,2.72101]
[1732962864379,1.1966229,3675.7,3675.4,2.72078]
[1732962864582,0.25174218,3675.6,3675.4,5.44155]
[1732962864794,0.25174218,3675.6,3675.5,2.72071]
[1732962865114,0.4021229,3675.7,3675.6,2.72064]
[1732962867077,0.7945,3676.4,3675.5,0.544148]
[1732962867379,0.03400291,3676.3,3675.5,3.264848]
[1732962867588,0.28584922,3676.3,3675.8,2.72047]
[1732962867999,0.03400291,3676.3,3675.8,2.72047]
[1732962868403,0.2518718,3676.2,3675.7,2.72056]
[1732962868808,2.9720718,3676.2,3675.5,2.72069]
[1732962869005,0.7945,3676.0,3674.9,2.72109]
[1732962869203,0.80192241,3675.9,3674.9,2.72109]
[1732962869531,2.72076,3675.5,3674.7,2.72125]
[1732962869839,2.75482172,3675.4,3674.7,2.72125]
[1732962870387,2.72081,3675.4,3674.8,2.72121]
[1732962870627,0.25206349,3675.3,3674.8,2.72117]
[1732962870839,0.40330306,3675.6,3674.9,2.72116]
[1732962871000,0.25207988,3675.4,3675.2,2.7209]
[1732962871332,0.25210653,3675.6,3675.1,2.72097]
[1732962871587,0.25210653,3675.5,3675.1,2.72097]
[1732962871714,0.7945,3675.7,3675.1,2.72097]
[1732962871907,0.25227297,3675.6,3674.9,2.72115]
[1732962872113,0.7945,3675.7,3675.0,3.0203667]
[1732962872309,0.25228772,3675.6,3675.0,2.72104]
[1732962872639,0.25228772,3675.5,3675.0,2.72104]
[1732962872839,0.25228772,3675.4,3675.0,2.72104]
[1732962872998,3.51508,3675.7,3675.0,2.72104]
[1732962873321,2.72071,3675.5,3674.6,2.72134]
[1732962873523,2.72088,3675.3,3674.6,2.72134]
[1732962873838,0.25241127,3675.2,3674.6,2.72134]
[1732962873998,0.25241127,3675.1,3674.7,2.7213]
[1732962874200,3.81700565,3675.5,3674.7,2.7213]
[1732962874428,2.97322134,3675.4,3674.5,2.72145]
[1732962874645,0.25242134,3675.3,3674.5,2.72145]
[1732962874801,0.25242134,3675.2,3674.8,2.72122]
[1732962875141,0.25242134,3675.1,3674.8,2.72122]
[1732962875299,2.7208,3675.4,3674.8,2.72122]
[1732962875502,0.25239949,3675.3,3674.8,2.72122]
[1732962875694,0.25239949,3675.2,3674.8,2.72122]
[1732962875940,0.40366036,3675.5,3674.8,2.72122]
[1732962875941,0.25239949,3675.1,3674.9,2.72112]
[1732962876096,3.12439036,3675.5,3674.4,3.49311]
[1732962876406,2.72087,3675.3,3674.4,3.49311]
[1732962876606,0.25243308,3675.2,3674.6,2.72136]
[1732962876808,0.25243308,3675.1,3674.9,2.72114]
[1732962877025,0.55,3675.4,3674.9,2.72114]
[1732962877204,0.25242744,3675.3,3674.9,2.72114]
[1732962877503,8.93,3675.6,3675.0,2.72102]
[1732962877703,0.65638547,3675.5,3675.1,2.72101]
[1732962877938,0.25245595,3675.4,3675.1,2.72101]
[1732962878246,8.93,3675.6,3675.1,2.72101]
[1732962878247,0.25245595,3675.3,3675.1,2.72101]
[1732962878391,0.25245595,3675.2,3675.1,2.72101]
[1732962879184,0.40401426,3675.5,3674.9,2.72112]
[1732962879328,0.25237996,3675.4,3674.9,2.72112]
[1732962879525,0.25237996,3675.3,3674.9,2.72112]
[1732962879843,0.25237996,3675.2,3674.9,2.72112]
[1732962880169,0.25237996,3675.1,3674.9,2.72112]
[1732962880471,0.40401426,3675.5,3674.9,2.72112]
[1732962880628,2.72067,3675.6,3674.9,2.72112]
[1732962880830,0.65632131,3675.5,3674.9,2.72112]
[1732962881035,0.65632131,3675.4,3674.9,2.72112]
[1732962881228,0.25243127,3675.3,3674.9,2.72112]
[1732962881449,0.25243127,3675.2,3674.9,2.72112]
[1732962881635,0.40389004,3675.5,3674.9,2.72112]
[1732962881868,0.25233939,3675.4,3674.9,2.72112]
[1732962882171,0.25233939,3675.3,3674.9,2.72112]
[1732962882369,0.25233939,3675.2,3675.0,2.72108]
[1732962882586,0.25232069,3675.1,3674.8,2.72116]
[1732962882745,0.40389004,3675.5,3674.9,2.72115]
[1732962882969,0.65619778,3675.4,3674.9,2.72115]
[1732962883184,0.25230774,3675.3,3674.9,2.72115]
[1732962883390,0.25230933,3675.3,3674.9,2.72115]
[1732962883601,0.25230933,3675.2,3675.0,2.72108]
[1732962883761,0.25230933,3675.1,3675.0,2.72108]
[1732962885615,0.8273,3675.0,3674.1,0.51]
[1732962885902,0.8273,3674.4,3673.8,2.72196]
[1732962886064,0.64121345,3674.3,3673.5,2.72216]
[1732962886266,0.25230933,3674.2,3673.6,2.72209]
[1732962886488,0.25230933,3674.1,3672.8,2.07800239]
[1732962886717,0.38890412,3674.3,3672.8,2.07800239]
[1732962886718,0.25230933,3674.0,3673.8,2.72197]
[1732962886912,0.25212286,3673.9,3673.8,2.72197]
[1732962887414,3.15884409,3674.3,3673.5,2.72215]
[1732962887704,3.15884409,3674.3,3673.2,2.72241]
[1732962887705,0.8273,3673.8,3673.2,2.72241]
[1732962887910,0.25199659,3673.7,3673.0,2.99466]
[1732962888113,0.25199659,3673.6,3673.3,2.72234]
[1732962888413,0.8273,3673.8,3673.3,2.72234]
[1732962888705,0.25177554,3673.7,3673.3,2.72234]
[1732962889012,0.8273,3673.8,3673.5,2.72212]
[1732962890985,0.7797,3674.1,3673.5,0.544445]
[1732962891208,0.55,3674.3,3673.9,2.72187]
[1732962891416,0.251534,3674.2,3673.9,2.72187]
[1732962891573,0.55,3674.3,3673.5,3.48669]
[1732962891774,0.2515439,3674.2,3673.5,3.48669]
[1732962891969,0.03402395,3674.1,3673.2,2.72235]
[1732962892197,0.03402395,3674.1,3673.1,0.7645]
[1732962892198,2.72202,3673.8,3673.1,2.72248]
[1732962892508,1.0312297,3674.0,3673.1,2.72248]
[1732962892509,0.25140754,3673.7,3673.1,2.72248]
[1732962892667,0.25140754,3673.6,3673.1,2.72248]
[1732962892872,0.55,3673.8,3672.6,2.72282]
[1732962893104,0.7797,3673.3,3672.6,2.72282]
[1732962893615,1.03111694,3673.3,3672.7,2.72278]
[1732962893909,0.7797,3673.3,3672.8,2.72266]
[1732962894515,2.72245,3673.2,3672.5,2.72294]
[1732962894671,2.72245,3673.2,3672.2,2.72315]
[1732962894672,3.27252,3673.1,3672.2,2.72315]
[1732962894871,12.20252,3673.1,3672.2,2.72315]
[1732962895071,0.55,3672.9,3672.4,2.72294]
[1732962895272,0.55,3672.9,3672.2,2.72312]
[1732962895273,0.7797,3672.8,3672.2,2.72312]
[1732962895509,0.03403749,3672.7,3672.0,2.72329]
[1732962895814,0.03403749,3672.7,3672.1,2.72321]
[1732962896114,0.7797,3672.8,3672.2,2.72315]
[1732962896409,0.55,3672.7,3671.4,3.4882]
[1732962896622,0.55,3672.7,3672.2,2.7231]
[1732962896922,0.55,3672.7,3672.3,2.72306]
[1732962897140,0.55,3672.7,3672.5,2.72293]
[1732962897414,0.7797,3672.8,3672.4,2.72299]
[1732962898523,9.48,3672.5,3671.0,0.7645]
[1732962898703,9.48,3672.5,3671.9,2.72332]
[1732962899248,9.48,3672.5,3671.2,3.0]
[1732962899249,2.72302,3672.4,3671.2,3.0]
[1732962899446,3.50279,3672.3,3671.6,2.72358]
[1732962899599,0.7797,3672.3,3671.7,2.72352]
[1732962900299,3.50279,3672.3,3671.4,2.72375]
[1732962900497,0.7797,3672.3,3671.6,2.72355]
[1732962900705,0.7797,3672.3,3671.7,2.72352]
[1732962901911,0.7797,3672.3,3671.9,2.72337]
[1732962902441,0.55,3672.2,3671.7,2.72349]
[1732962902641,0.55,3672.2,3671.8,2.72345]
[1732962903136,0.55,3672.2,3671.6,2.72357]
[1732962903336,0.7797,3672.3,3672.0,2.72324]
[1732962903544,0.7797,3672.3,3671.6,2.7236]
[1732962903747,0.7797,3672.3,3671.8,2.7234]
[1732962904044,0.03404306,3672.2,3671.6,2.7236]
[1732962904399,0.55,3672.2,3671.6,2.72355]
[1732962904640,0.55,3672.2,3671.0,3.7645]
[1732962904853,0.55,3672.2,3671.7,2.72351]
[1732962905144,0.55,3672.2,3671.4,2.72371]
[1732962905341,0.55,3672.2,3671.1,0.648857]
[1732962905342,0.03404368,3672.1,3671.2,2.7239]
[1732962905636,0.7797,3672.0,3671.2,2.7239]
[1732962905839,0.03404483,3671.9,3671.4,2.72373]
[1732962906039,0.03404483,3671.9,3671.2,2.7239]
[1732962906245,0.7797,3672.0,3671.5,2.72366]
[1732962908213,0.7797,3672.0,3671.3,2.72382]
[1732962908414,1.20999598,3672.0,3671.3,2.72381]
[1732962908743,0.55,3671.7,3670.9,2.72412]
[1732962909244,3.2734,3671.9,3671.2,2.72388]
[1732962909449,3.9940646,3671.9,3671.2,2.72388]
[1732962909918,10.2006646,3671.9,3671.3,2.72381]
[1732962910447,12.9240646,3671.9,3671.1,2.72397]
[1732962910746,0.8057,3671.6,3671.1,2.72397]
[1732962911046,0.8057,3671.6,3671.2,2.72388]
[1732962911718,0.8057,3671.6,3671.0,2.72405]
[1732962911910,0.8057,3671.6,3671.3,2.7238]
[1732962912445,11.65309,3672.3,3671.3,2.7238]
[1732962912446,0.8057,3672.5,3671.6,0.7709]
[1732962912630,8.93,3672.6,3672.5,2.72294]
[1732962913645,0.8057,3672.8,3672.5,2.72294]
[1732962913802,1.20664926,3673.2,3672.0,11.16993]
[1732962914007,1.20664926,3673.2,3673.1,2.72249]
[1732962914203,1.20664926,3673.2,3672.9,2.72262]
[1732962914204,1.05631499,3673.2,3672.9,2.72262]
[1732962914408,0.25061499,3673.1,3672.9,2.72262]
[1732962914643,0.03403295,3673.1,3672.9,2.72262]
[1732962914802,0.25081204,3673.0,3672.7,2.72277]
[1732962915138,0.8057,3673.2,3673.1,2.72249]
[1732962915451,0.25104742,3673.2,3673.1,2.72249]
[1732962915603,0.40094926,3673.9,3673.1,1.315407]
[1732962915804,0.68603799,3673.8,3672.6,0.7709]
[1732962916006,0.65201192,3673.7,3672.6,0.7709]
[1732962916203,0.65201192,3673.6,3673.3,2.72229]
[1732962916404,0.40094926,3673.5,3673.4,2.7222]
[1732962916603,0.65201192,3673.5,3673.4,2.7222]
[1732962916851,0.65201192,3673.5,3673.3,2.72229]
[1732962917014,4.11473462,3674.0,3673.3,2.72229]
[1732962917015,0.65201192,3673.4,3673.3,2.72229]
[1732962917222,0.65201192,3673.4,3673.1,2.72242]
[1732962917425,0.25106266,3673.3,3673.2,2.72242]
[1732962917733,0.65304993,3673.3,3673.2,2.72242]
[1732962918233,0.25106266,3673.3,3673.2,3.266913]
[1732962918614,0.40198727,3673.7,3673.3,2.7223]
[1732962918831,0.65326832,3673.6,3673.3,2.7223]
[1732962919019,0.25128105,3673.5,3673.3,2.7223]
[1732962919229,0.25128105,3673.5,3673.4,2.72227]
[1732962919403,0.25128105,3673.5,3673.2,2.72237]
[1732962919617,0.65326832,3673.4,3672.9,2.72257]
[1732962919806,0.25128105,3673.3,3672.6,0.7709]
[1732962920010,0.25128105,3673.2,3672.9,2.7226]
[1732962920241,1.05698105,3673.1,3672.3,2.72308]
[1732962920449,0.25128105,3673.0,3672.6,2.72281]
[1732962920659,0.25128105,3672.9,3672.7,2.72273]
[1732962920826,0.65358964,3672.8,3672.7,2.72273]
[1732962921166,0.80292732,3672.8,3672.2,2.72309]
[1732962921480,0.65359499,3672.7,3672.2,2.72309]
[1732962921656,0.65359499,3672.6,3672.3,2.72303]
[1732962921852,0.65359499,3672.5,3672.4,2.72298]
[1732962922018,0.25128105,3672.5,3672.4,2.72298]
[1732962922220,0.25128105,3672.5,3672.4,3.49388]
[1732962923564,0.25128105,3672.5,3672.2,2.72314]
[1732962923857,1.45972548,3672.4,3672.0,2.72331]
[1732962924190,0.6540118,3672.3,3672.0,2.72331]
[1732962924457,0.6540118,3672.2,3672.0,2.72328]
[1732962924645,0.6540118,3672.1,3672.0,2.72328]
[1732962925322,0.6540118,3672.1,3671.8,2.72345]
[1732962925519,0.25128105,3672.0,3671.6,2.7236]
[1732962925746,0.28532365,3671.9,3671.3,2.72377]
[1732962926057,2.00973593,3671.8,3671.4,2.72375]
[1732962926220,0.65403593,3671.7,3671.4,2.72375]
[1732962926419,1.3557,3671.8,3671.4,2.72375]
[1732962926420,0.25128105,3671.6,3671.4,2.72375]
[1732962926620,0.25128105,3671.5,3671.4,2.72375]
[1732962927564,1.3557,3671.8,3671.4,2.72375]
[1732962927763,0.25164289,3671.7,3671.4,2.72375]
[1732962928009,0.25164289,3671.6,3671.4,2.72375]
[1732962928278,1.78242641,3671.8,3671.2,2.72389]
[1732962928487,0.25162009,3671.7,3671.2,2.72389]
[1732962928783,0.25162009,3671.6,3671.2,2.72389]
[1732962928939,0.55,3671.6,3671.0,2.72402]
[1732962929295,0.55,3671.4,3670.9,2.72411]
[1732962929438,0.8057,3671.3,3670.5,2.72442]
[1732962929780,0.8057,3671.3,3671.0,2.72402]
[1732962930349,0.25150645,3671.2,3671.1,2.72397]
[1732962930677,0.25150645,3671.2,3670.2,0.7709]
[1732962930678,0.55,3671.4,3671.0,2.72402]
[1732962930863,0.25151292,3671.3,3671.0,2.72402]
[1732962931185,0.55,3671.4,3670.5,3.0]
[1732962931385,0.55,3671.4,3670.3,2.07800239]
[1732962931386,0.55,3671.4,3671.1,2.72391]
[1732962931741,0.55,3671.4,3670.9,2.72412]
[1732962931742,0.55,3671.4,3671.2,2.72388]
[1732962931981,0.55,3671.4,3671.2,2.79744028]
[1732962932679,0.55,3671.4,3671.2,0.07356028]
[1732962933191,0.55,3671.4,3670.3,2.07800239]
[1732962933345,0.8057,3671.6,3671.3,0.07399124]
[1732962933346,0.80141956,3671.5,3671.3,0.07399124]
[1732962933546,0.8057,3671.6,3671.4,2.72375]
[1732962933749,0.8057,3671.6,3671.4,2.79771916]
[1732962934143,0.8057,3671.6,3671.4,0.07396916]
[1732962934450,0.55,3671.5,3671.1,2.72392]
[1732962934653,0.55,3671.5,3671.2,0.07401331]
[1732962934870,0.55,3671.5,3671.1,2.72392]
[1732962935196,0.55,3671.5,3671.2,0.07401331]
[1732962935587,0.55,3671.5,3671.1,2.72392]
[1732962935779,1.63453633,3671.5,3671.3,0.07396642]
[1732962935980,1.63453633,3671.5,3671.2,0.07398849]
[1732962936185,1.63453633,3671.5,3671.4,0.07394434]
[1732962936472,1.88590236,3671.5,3670.9,2.72408]
[1732962936675,0.25136603,3671.4,3670.9,2.72408]
[1732962936983,1.63453633,3671.5,3671.0,0.07404754]
[1732962937194,0.67809823,3671.4,3671.0,0.07404754]
[1732962937401,0.42672641,3671.4,3671.0,0.07404754]
[1732962937598,0.8088,3671.2,3671.0,0.07404754]
[1732962937799,4.77015605,3671.1,3671.0,0.07404754]
[1732962938010,0.55,3670.8,3670.3,2.72454]
[1732962938313,0.25128072,3670.7,3670.4,0.07419989]
[1732962938470,0.8088,3670.5,3670.4,0.07419989]
[1732962938675,1.3588,3670.4,3669.1,2.72546]
[1732962938875,0.55,3670.2,3669.7,2.72499]
[1732962939086,0.55,3670.2,3669.5,2.72515]
[1732962939087,0.55,3670.2,3669.8,2.79929373]
[1732962939389,0.55,3670.3,3669.8,2.79929373]
[1732962939595,0.25097649,3670.2,3669.8,2.79929373]